lending/lending_fUSD_20240710
["ID","MTS","AMOUNT","RATE_DAILY","PERIOD"]
[331694512,1720651832375,-23092.0,0.00013447,2]
[331694513,1720651832384,-182.6,0.0001351,2]
[331694514,1720651832394,-182.95576881,0.00013516,2]
[331694515,1720651832403,-369.58418394,0.00013516,2]
[331694516,1720651832412,-150.0,0.00013552,2]
[331694517,1720651832421,-150.0,0.00013552,2]
[331694518,1720651832429,-150.0,0.00013552,2]
[331694519,1720651832439,-1418.60140405,0.0001358,2]
[331694520,1720651832447,-500.0,0.00013698,2]
[331694521,1720651832457,-500.0,0.00013698,2]
[331694522,1720651832466,-500.0,0.00013698,2]
[331694523,1720651832475,-500.0,0.00013698,2]
[331694524,1720651832484,-500.0,0.00013698,2]
[331694525,1720651832493,-500.0,0.00013698,2]
[331694526,1720651832502,-500.74,0.00013698,2]
[331694527,1720651832511,-500.0,0.00013698,2]
[331694528,1720651832520,-5773.39,0.00013698,2]
[331694529,1720651832529,-500.0,0.00013698,2]
[331694530,1720651832538,-500.0,0.00013698,2]
[331694531,1720651832547,-500.0,0.00013698,2]
[331694532,1720651832556,-500.0,0.00013698,2]
[331694533,1720651832565,-425.92569407,0.00013698,2]
[331694534,1720651832574,-500.0,0.00013698,2]
[331694535,1720651832583,-244.11900171,0.00013698,2]
[331694536,1720651832592,-648.72672749,0.00013698,2]
[331694537,1720651832601,-500.0,0.00013698,2]
[331694538,1720651832610,-500.0,0.00013698,2]
[331694539,1720651832619,-500.0,0.00013698,2]
[331694540,1720651832628,-500.0,0.00013698,2]
[331694541,1720651832638,-293.42541875,0.00013698,2]
[331694542,1720651832647,-250.0,0.00013699,2]
[331694543,1720651832656,-500.0,0.00013699,2]
[331694544,1720651832665,-435.08,0.00013699,2]
[331694545,1720651832674,-335.11024637,0.00013708,2]
[331694546,1720651832683,-1119.6389005,0.0001372,2]
[331694547,1720651832693,-438.90501237,0.00013736,2]
[331694548,1720651832702,-528.93489931,0.00013736,2]
[331694549,1720651832711,-5773.39,0.00013753,2]
[331694550,1720651832721,-500.0,0.00013753,2]
[331694551,1720651832731,-309786.25430797,0.00013759,2]
[331694552,1720651832740,-1716.7885,0.00013799,2]
[331694553,1720651832750,-5773.39,0.00013808,2]
[331694554,1720651832759,-500.0,0.00013808,2]
[331694555,1720651832769,-420.0,0.00013811,2]
[331694556,1720651832779,-5773.39,0.00013863,2]
[331694557,1720651832790,-500.0,0.00013863,2]
[331694558,1720651832800,-3000.0,0.00013888,2]
[331694559,1720651832809,-500.0,0.00013888,2]
[331694560,1720651832818,-200.0,0.00013888,2]
[331694561,1720651832827,-219.6763,0.00013899,2]
[331694562,1720651832836,-3762.1038,0.00013899,2]
[331694563,1720651832845,-294.6914,0.00013899,2]
[331694564,1720651832854,-3245.5692,0.00013899,2]
[331694565,1720651832863,-2500.0,0.00013899,2]
[331694566,1720651832872,-22161.028,0.000139,2]
[331694567,1720651832880,-6497.7158,0.000139,2]
[331694568,1720651832890,-1000.0,0.000139,2]
[331694569,1720651832899,-1000.0,0.000139,2]
[331694570,1720651832908,-7500.0,0.000139,2]
[331694571,1720651832917,-643.32568416,0.000139,2]
[331694572,1720651832927,-1000.0,0.000139,2]
[331694573,1720651832936,-5773.39,0.00013917,2]
[331694574,1720651832946,-500.0,0.00013917,2]
[331694575,1720651832956,-800.0,0.00013943,2]
[331694576,1720651832966,-5773.39,0.00013972,2]
[331694577,1720651832975,-500.0,0.00013972,2]
[331694578,1720651832984,-1067.8376,0.00013973,2]
[331694579,1720651832993,-227.29136124,0.00013989,2]
[331694580,1720651833002,-4130.86,0.00013998,2]
[331694581,1720651833011,-500.0,0.00013998,2]
[331694582,1720651833020,-500.0,0.00013998,2]
[331694583,1720651833029,-500.0,0.00013998,2]
[331694584,1720651833038,-500.0,0.00013998,2]
[331694585,1720651833048,-500.0,0.00013998,2]
[331694586,1720651833057,-500.0,0.00013998,2]
[331694587,1720651833066,-500.0,0.00013998,2]
[331694588,1720651833075,-626.9,0.00013998,2]
[331694589,1720651833084,-500.0,0.00013998,2]
[331694590,1720651833094,-500.0,0.00013998,2]
[331694591,1720651833103,-572.42,0.00013998,2]
[331694592,1720651833112,-500.0,0.00013998,2]
[331694593,1720651833122,-309.15681096,0.00013998,2]
[331694594,1720651833131,-500.0,0.00013998,2]
[331694595,1720651833140,-500.0,0.00013998,2]
[331694596,1720651833150,-500.0,0.00013998,2]
[331694597,1720651833159,-500.0,0.00013998,2]
[331694598,1720651833168,-500.0,0.00013998,2]
[331694599,1720651833177,-634.7,0.00013998,2]
[331694600,1720651833186,-500.0,0.00013998,2]
[331694601,1720651833196,-622.14378409,0.00013998,2]
[331694602,1720651833205,-500.0,0.00013998,2]
[331694603,1720651833214,-1140.34,0.00013998,2]
[331694604,1720651833223,-500.0,0.00013998,2]
[331694605,1720651833232,-500.0,0.00013998,2]
[331694606,1720651833243,-388.68348722,0.00013998,2]
[331694607,1720651833252,-500.0,0.00013998,2]
[331694608,1720651833264,-500.0,0.00013998,2]
[331694609,1720651833275,-500.0,0.00013998,2]
[331694610,1720651833288,-500.0,0.00013998,2]
[331694611,1720651833299,-500.0,0.00013998,2]
[331694612,1720651833309,-500.0,0.00013998,2]
[331694613,1720651833318,-500.0,0.00013998,2]
[331694614,1720651833328,-500.0,0.00013998,2]
[331694615,1720651833337,-526.13,0.00013998,2]
[331694616,1720651833346,-225.7260843,0.00013999,2]
[331694617,1720651833355,-500.0,0.00013999,2]
[331694618,1720651833364,-500.0,0.00013999,2]
[331694619,1720651833373,-500.0,0.00013999,2]
[331694620,1720651833382,-500.0,0.00013999,2]
[331694621,1720651833391,-500.0,0.00013999,2]
[331694622,1720651833401,-500.0,0.00013999,2]
[331694623,1720651833410,-500.0,0.00013999,2]
[331694625,1720651833419,-500.0,0.00013999,2]
[331694626,1720651833428,-500.0,0.00013999,2]
[331694627,1720651833437,-500.0,0.00013999,2]
[331694628,1720651833447,-500.0,0.00013999,2]
[331694629,1720651833456,-500.0,0.00013999,2]
[331694630,1720651833465,-500.0,0.00013999,2]
[331694631,1720651833475,-500.0,0.00013999,2]
[331694633,1720651833484,-500.0,0.00013999,2]
[331694635,1720651833493,-500.0,0.00013999,2]
[331694636,1720651833502,-500.0,0.00013999,2]
[331694637,1720651833511,-512.91,0.00013999,2]
[331694638,1720651833520,-500.0,0.00013999,2]
[331694639,1720651833530,-500.0,0.00013999,2]
[331694640,1720651833539,-500.0,0.00013999,2]
[331694641,1720651833548,-564.76,0.00013999,2]
[331694642,1720651833558,-308.17,0.00013999,2]
[331694643,1720651833567,-500.0,0.00013999,2]
[331694644,1720651833576,-526.09,0.00013999,2]
[331694645,1720651833585,-7513.0436455,0.00013999,2]
[331694646,1720651833594,-500.0,0.00013999,2]
[331694647,1720651833603,-647.96198578,0.00013999,2]
[331694648,1720651833612,-500.0,0.00013999,2]
[331694649,1720651833621,-500.0,0.00013999,2]
[331694650,1720651833630,-500.0,0.00013999,2]
[331694651,1720651833638,-624.66,0.00013999,2]
[331694652,1720651833647,-622.29,0.00013999,2]
[331694653,1720651833656,-500.0,0.00013999,2]
[331694654,1720651833665,-500.0,0.00013999,2]
[331694655,1720651833674,-500.0,0.00013999,2]
[331694656,1720651833683,-500.0,0.00013999,2]
[331694657,1720651833692,-500.0,0.00013999,2]
[331694658,1720651833701,-500.0,0.00013999,2]
[331694659,1720651833711,-500.0,0.00013999,2]
[331694660,1720651833721,-500.0,0.00013999,2]
[331694661,1720651833731,-500.0,0.00013999,2]
[331694662,1720651833740,-2472.4,0.00013999,2]
[331694663,1720651833749,-500.0,0.00013999,2]
[331694664,1720651833758,-725.23,0.00013999,2]
[331694665,1720651833767,-500.0,0.00013999,2]
[331694666,1720651833775,-500.0,0.00013999,2]
[331694667,1720651833784,-91224.42521474,0.00014,2]
[331694668,1720651833828,-4670.58140367,0.00014,2]
[331694669,1720651833840,-399.12662878,0.00014,2]
[331694670,1720651833851,-2497.40548677,0.00014,2]
[331694671,1720651833861,-522.58091288,0.00014,2]
[331694672,1720651833877,-7446.10655313,0.00014,2]
[331694673,1720651833889,-3466.7,0.00014,2]
[331694674,1720651833900,-11627.07321666,0.00014,2]
[331694675,1720651833912,-711.6,0.00014,2]
[331694676,1720651833923,-358.471,0.00014,2]
[331694677,1720651833934,-279.69657276,0.00014,2]
[331694678,1720651833946,-1098.8377003,0.00014,2]
[331694679,1720651833961,-818.82444517,0.00014,2]
[331694680,1720651833972,-757.13168339,0.00014,2]
[331694681,1720651833983,-17934.22921282,0.00014,2]
[331694682,1720651833996,-7437.2549129,0.00014,2]
[331694683,1720651834007,-335.92939992,0.00014,2]
[331694684,1720651834017,-348.89010204,0.00014,2]
[331694685,1720651834028,-291.505,0.00014,2]
[331694686,1720651834038,-660.054,0.00014,2]
[331694687,1720651834048,-839.71371478,0.00014,2]
[331694688,1720651834059,-387.0989336,0.00014,2]
[331694689,1720651834070,-334.50747262,0.00014,2]
[331694697,1720651838693,-208.85960575,0.00012273,2]
[331694698,1720651838703,-4461.76938347,0.00014,2]
[331694811,1720651840021,-550.24674145,0.00014,2]
[331694844,1720651840418,-319.1914083,0.00013698,2]
[331694845,1720651840434,-180.8085917,0.00013698,2]
[331694846,1720651840444,-1819.1914083,0.00014,2]
[331694847,1720651840455,-500.87764752,0.00014,2]
[331694867,1720651846283,-854.93,0.00013141,2]
[331694868,1720651846292,-527.82,0.00013278,2]
[331694869,1720651846303,-500.0,0.00013698,2]
[331694870,1720651846312,-570.18,0.00013698,2]
[331694871,1720651846324,-290942.46175481,0.00014,2]
[331694872,1720651846333,-23795.8352884,0.00014,2]
[331694883,1720652110012,-200.0,0.00012938,2]
[331694884,1720652110036,-150.0,0.00012978,2]
[331694885,1720652110059,-1250.0,0.00013,2]
[331694886,1720652110083,-168.73,0.00013131,2]
[331694887,1720652110106,-6039.03141018,0.00013313,2]
[331694888,1720652110129,-150.0,0.00013313,2]
[331694889,1720652110152,-228042.23858982,0.00013314,2]
[331694898,1720652350359,470.88,0.00010932,2]
[331694900,1720652392955,132090.47984152,0.00010932,2]
[331694903,1720652460441,155.0,0.00012,2]
[331694904,1720652476277,685.44456832,0.00011199,2]
[331694907,1720652531610,500.0,0.00027,120]
[331694909,1720652598011,506.16120352,0.00011199,2]
[331694911,1720652624267,1132.70386003,0.00011199,2]
[331694920,1720652837743,5601.11144692,0.00011199,2]
[331694921,1720652837799,685.44456832,0.00011199,2]
[331694923,1720652946567,1053.17959059,0.00011199,2]
[331694924,1720652954075,3110.75746026,0.00011199,2]
[331694927,1720652968770,481.42,0.0001016,2]
[331694928,1720652970151,720.62297892,0.00011199,2]
[331694937,1720653032246,-168.1,0.00012045,2]
[331694938,1720653032255,-180.63,0.00012083,2]
[331694939,1720653032264,-500.0,0.00012223,2]
[331694940,1720653032273,-250.0,0.00012223,2]
[331694941,1720653032282,-155.0,0.00012273,2]
[331694942,1720653032291,-299.02,0.00012301,2]
[331694943,1720653032300,-300.0,0.00012301,2]
[331694944,1720653032309,-3279.72009967,0.00012308,2]
[331694945,1720653033401,-1374.91990033,0.00012308,2]
[331694946,1720653033411,-247.23937713,0.00012314,2]
[331694947,1720653033424,-121.94355328,0.00012314,2]
[331694948,1720653033434,-203.18338843,0.00012314,2]
[331694949,1720653033447,-174.35486347,0.00012314,2]
[331694950,1720653033459,-203.21171112,0.00012314,2]
[331694951,1720653033469,-155.0,0.00012314,2]
[331694952,1720653033479,-481.42,0.00012424,2]
[331694953,1720653033488,-2761.3726,0.00012518,2]
[331694954,1720653033497,-437.64,0.00012529,2]
[331694955,1720653033506,-164.89653503,0.00012563,2]
[331694956,1720653033516,-211.49198651,0.000126,2]
[331694957,1720653033525,-150.0,0.00012617,2]
[331694958,1720653033534,-11541.75172974,0.00012618,2]
[331694959,1720653033546,-12358.24827026,0.00012618,2]
[331694960,1720653033555,-255.17,0.00012663,2]
[331694961,1720653033565,-164.89653501,0.00012791,2]
[331694962,1720653033574,-854.93,0.000128,2]
[331694963,1720653033583,-854.93,0.00012841,2]
[331694964,1720653033592,-520.0,0.00012863,2]
[331694965,1720653033602,-419.43,0.00012941,2]
[331694966,1720653033611,-187.39519473,0.00012941,2]
[331694967,1720653033625,-232.03480527,0.00012941,2]
[331694968,1720653033634,-613.36519468,0.00012993,2]
[331694972,1720653033666,647.71813835,0.00011199,2]
[331694975,1720653033679,-37367.09784803,0.00012993,2]
[331694977,1720653033688,-75877.0,0.00013003,2]
[331694979,1720653033697,-164.89653501,0.0001302,2]
[331694981,1720653033705,-782.57,0.0001302,2]
[331694983,1720653033714,-4654.62,0.0001302,2]
[331694985,1720653033723,-419.43,0.00013041,2]
[331694987,1720653033734,-1563.43,0.00013041,2]
[331694989,1720653033743,-419.43,0.00013041,2]
[331694991,1720653033752,-163.7587599,0.00013128,2]
[331694992,1720653033761,-156.53084773,0.00013128,2]
[331694994,1720653033771,-945.20224638,0.00013128,2]
[331694996,1720653033782,-292.65387629,0.00013128,2]
[331694998,1720653033792,-155.0,0.00013128,2]
[331695000,1720653033801,-518.69562264,0.00013128,2]
[331695002,1720653033811,-854.93,0.00013141,2]
[331695004,1720653033821,-419.43,0.00013141,2]
[331695006,1720653033829,-326.59,0.00013213,2]
[331695008,1720653033838,-499.99,0.00013213,2]
[331695010,1720653033848,-266.32,0.00013213,2]
[331695011,1720653033856,-16022.95,0.00013214,2]
[331695012,1720653033866,-194.9632,0.00013214,2]
[331695013,1720653033875,-164.89653501,0.00013248,2]
[331695014,1720653033884,-150.0,0.00013278,2]
[331695015,1720653033894,-150.0,0.000133,2]
[331695016,1720653033904,-150.0,0.000133,2]
[331695017,1720653033914,-1126.3595,0.00013348,2]
[331695018,1720653033923,-212.502,0.00013348,2]
[331695019,1720653033932,-854.93,0.00013364,2]
[331695020,1720653033941,-419.43,0.00013364,2]
[331695021,1720653033950,-419.43,0.00013364,2]
[331695022,1720653033960,-854.93,0.00013364,2]
[331695023,1720653033968,-854.93,0.00013364,2]
[331695024,1720653033979,-1649.2,0.00013364,2]
[331695025,1720653033988,-502.99,0.00013364,2]
[331695026,1720653033997,-571.52,0.00013364,2]
[331695027,1720653034006,-854.93,0.000134,2]
[331695028,1720653034014,-419.43,0.000134,2]
[331695029,1720653034023,-528.93489931,0.00013472,2]
[331695030,1720653034032,-420.0,0.000135,2]
[331695031,1720653034041,-419.43,0.00013541,2]
[331695032,1720653034050,-155.36558088,0.00013543,2]
[331695033,1720653034059,-2813.5844,0.00013598,2]
[331695034,1720653034069,-64852.0167,0.00013598,2]
[331695035,1720653034079,-802.3817,0.00013598,2]
[331695036,1720653034089,-310.0,0.00013598,2]
[331695037,1720653034098,-854.93,0.000136,2]
[331695038,1720653034107,-419.43,0.000136,2]
[331695039,1720653034117,-500.0,0.00013698,2]
[331695040,1720653034126,-500.0,0.00013698,2]
[331695041,1720653034135,-500.0,0.00013698,2]
[331695042,1720653034145,-586.44,0.00013698,2]
[331695043,1720653034155,-500.0,0.00013698,2]
[331695044,1720653034165,-601.06,0.00013698,2]
[331695045,1720653034174,-500.0,0.00013698,2]
[331695046,1720653034183,-500.0,0.00013698,2]
[331695047,1720653034191,-500.0,0.00013698,2]
[331695048,1720653034201,-500.0,0.00013698,2]
[331695049,1720653034212,-500.0,0.00013698,2]
[331695050,1720653034222,-500.0,0.00013698,2]
[331695051,1720653034232,-500.0,0.00013698,2]
[331695052,1720653034241,-500.0,0.00013698,2]
[331695053,1720653034250,-365.60853973,0.00013698,2]
[331695054,1720653034258,-500.0,0.00013698,2]
[331695055,1720653034267,-500.0,0.00013698,2]
[331695056,1720653034276,-500.0,0.00013698,2]
[331695057,1720653034285,-500.0,0.00013698,2]
[331695058,1720653034294,-500.0,0.00013698,2]
[331695059,1720653034303,-500.0,0.00013698,2]
[331695060,1720653034312,-500.0,0.00013698,2]
[331695061,1720653034322,-500.0,0.00013698,2]
[331695062,1720653034331,-500.0,0.00013698,2]
[331695063,1720653034347,-500.0,0.00013698,2]
[331695064,1720653034356,-500.0,0.00013698,2]
[331695065,1720653034365,-500.0,0.00013698,2]
[331695066,1720653034374,-500.0,0.00013698,2]
[331695067,1720653034383,-500.0,0.00013698,2]
[331695068,1720653034392,-317.42,0.00013698,2]
[331695069,1720653034401,-500.0,0.00013698,2]
[331695070,1720653034410,-1358.35,0.00013698,2]
[331695071,1720653034419,-250.64,0.00013698,2]
[331695072,1720653034427,-438.92633522,0.00013698,2]
[331695073,1720653034436,-500.0,0.00013698,2]
[331695074,1720653034445,-500.0,0.00013698,2]
[331695075,1720653034455,-500.0,0.00013698,2]
[331695076,1720653034463,-500.0,0.00013698,2]
[331695077,1720653034472,-500.0,0.00013698,2]
[331695078,1720653034482,-500.0,0.00013698,2]
[331695079,1720653034491,-4330.04,0.00013698,2]
[331695080,1720653034500,-500.0,0.00013698,2]
[331695081,1720653034509,-500.0,0.00013698,2]
[331695082,1720653034518,-500.0,0.00013698,2]
[331695083,1720653034527,-500.0,0.00013698,2]
[331695084,1720653034536,-217.54,0.00013699,2]
[331695085,1720653034545,-250.0,0.00013699,2]
[331695086,1720653034554,-9574.67,0.00013699,2]
[331695087,1720653034563,-1000.0,0.000137,2]
[331695088,1720653034574,-255.0,0.00013715,2]
[331695089,1720653034584,-366.13665381,0.00013736,2]
[331695090,1720653034594,-427.82,0.00013753,2]
[331695091,1720653034604,-263.95,0.00013753,2]
[331695092,1720653034614,-339.26,0.00013753,2]
[331695093,1720653034624,-500.0,0.00013753,2]
[331695094,1720653034633,-500.0,0.00013753,2]
[331695095,1720653034643,-500.0,0.00013753,2]
[331695096,1720653034652,-1358.35,0.00013753,2]
[331695097,1720653034662,-331.53,0.00013753,2]
[331695098,1720653034671,-545.62,0.00013753,2]
[331695099,1720653034680,-500.0,0.00013753,2]
[331695100,1720653034690,-4330.04,0.00013753,2]
[331695101,1720653034699,-500.0,0.00013753,2]
[331695102,1720653034709,-212.98,0.00013753,2]
[331695103,1720653034718,-500.0,0.00013758,2]
[331695104,1720653034729,-500.0,0.00013758,2]
[331695105,1720653034738,-617.03,0.00013758,2]
[331695106,1720653034747,-500.0,0.00013758,2]
[331695107,1720653034756,-500.0,0.00013758,2]
[331695108,1720653034765,-500.0,0.00013758,2]
[331695109,1720653034773,-500.0,0.00013758,2]
[331695110,1720653034783,-500.0,0.00013758,2]
[331695111,1720653034791,-500.0,0.00013758,2]
[331695112,1720653034800,-500.0,0.00013758,2]
[331695113,1720653034809,-500.0,0.00013758,2]
[331695114,1720653034818,-523.60403498,0.00013758,2]
[331695115,1720653034827,-2833.71037734,0.00013759,2]
[331695116,1720653034836,-2833.71037734,0.00013759,2]
[331695117,1720653034845,-163.33113187,0.0001379,2]
[331695118,1720653034854,-163.33113184,0.0001379,2]
[331695119,1720653034864,-163.33113184,0.0001379,2]
[331695120,1720653034873,-500.0,0.00013799,2]
[331695121,1720653034882,-500.0,0.00013799,2]
[331695122,1720653034890,-500.0,0.00013799,2]
[331695123,1720653034899,-500.0,0.00013799,2]
[331695124,1720653034908,-500.0,0.00013799,2]
[331695125,1720653034917,-500.0,0.00013799,2]
[331695126,1720653034926,-500.0,0.00013799,2]
[331695127,1720653034935,-500.0,0.00013799,2]
[331695128,1720653034943,-580.51,0.00013799,2]
[331695129,1720653034952,-500.0,0.00013799,2]
[331695130,1720653034961,-500.0,0.00013799,2]
[331695131,1720653034970,-175.98533307,0.00013799,2]
[331695132,1720653034979,-500.0,0.00013799,2]
[331695133,1720653034987,-175.98533304,0.00013799,2]
[331695134,1720653034996,-500.0,0.00013799,2]
[331695135,1720653035005,-175.98533304,0.00013799,2]
[331695136,1720653035014,-500.0,0.00013799,2]
[331695137,1720653035023,-175.98533304,0.00013799,2]
[331695138,1720653035031,-500.0,0.00013799,2]
[331695139,1720653035041,-500.0,0.00013799,2]
[331695140,1720653035050,-2369.38,0.00013799,2]
[331695141,1720653035058,-221.1,0.00013799,2]
[331695142,1720653035068,-695.01,0.00013799,2]
[331695143,1720653035076,-419.43,0.000138,2]
[331695144,1720653035085,-419.43,0.000138,2]
[331695145,1720653035094,-854.93,0.000138,2]
[331695146,1720653035103,-1253.0,0.000138,2]
[331695147,1720653035112,-150.0,0.000138,2]
[331695148,1720653035121,-2377.0,0.000138,2]
[331695149,1720653035130,-1990.0,0.000138,2]
[331695150,1720653035249,-549.0,0.000138,2]
[331695151,1720653035312,-3277.0,0.000138,2]
[331695152,1720653035322,-1200.0,0.000138,2]
[331695153,1720653035333,-1664.0,0.000138,2]
[331695154,1720653035343,-38275.0,0.000138,2]
[331695155,1720653035353,-5792.0,0.000138,2]
[331695156,1720653035364,-5181.0,0.000138,2]
[331695157,1720653035373,-1200.0,0.000138,2]
[331695158,1720653035382,-506.42,0.00013808,2]
[331695159,1720653035391,-500.0,0.00013808,2]
[331695160,1720653035400,-500.0,0.00013808,2]
[331695161,1720653035409,-1358.35,0.00013808,2]
[331695162,1720653035418,-157.18,0.00013808,2]
[331695163,1720653035427,-4330.04,0.00013808,2]
[331695164,1720653035436,-500.0,0.00013808,2]
[331695165,1720653035445,-500.0,0.00013811,2]
[331695166,1720653035454,-500.0,0.00013811,2]
[331695167,1720653035464,-500.0,0.00013811,2]
[331695168,1720653035473,-500.0,0.00013811,2]
[331695169,1720653035484,-500.0,0.00013811,2]
[331695170,1720653035493,-500.0,0.00013811,2]
[331695171,1720653035502,-500.0,0.00013811,2]
[331695172,1720653035512,-500.0,0.00013811,2]
[331695173,1720653035524,-500.0,0.00013811,2]
[331695174,1720653035534,-500.0,0.00013811,2]
[331695175,1720653035542,-500.0,0.00013811,2]
[331695176,1720653035551,-500.0,0.00013811,2]
[331695177,1720653035560,-500.0,0.00013811,2]
[331695178,1720653035569,-500.0,0.00013811,2]
[331695179,1720653035578,-500.0,0.00013811,2]
[331695180,1720653035587,-3958.74,0.00013811,2]
[331695181,1720653035597,-500.0,0.00013811,2]
[331695182,1720653035606,-500.0,0.00013811,2]
[331695183,1720653035616,-500.0,0.00013811,2]
[331695184,1720653035626,-500.0,0.00013811,2]
[331695185,1720653035636,-500.0,0.00013811,2]
[331695186,1720653035646,-500.0,0.00013811,2]
[331695187,1720653035655,-500.0,0.00013811,2]
[331695188,1720653035665,-331.44752102,0.00013811,2]
[331695189,1720653035675,-500.0,0.00013811,2]
[331695190,1720653035685,-500.0,0.00013811,2]
[331695191,1720653035696,-500.0,0.00013811,2]
[331695192,1720653035706,-500.0,0.00013811,2]
[331695193,1720653035717,-500.0,0.00013811,2]
[331695194,1720653035727,-500.0,0.00013811,2]
[331695195,1720653035736,-500.0,0.00013811,2]
[331695196,1720653035746,-500.0,0.00013811,2]
[331695197,1720653035755,-500.0,0.00013811,2]
[331695198,1720653035764,-500.0,0.00013811,2]
[331695199,1720653035773,-500.0,0.00013811,2]
[331695200,1720653035783,-500.0,0.00013811,2]
[331695201,1720653035792,-500.0,0.00013811,2]
[331695202,1720653035801,-500.0,0.00013811,2]
[331695203,1720653035810,-500.0,0.00013811,2]
[331695204,1720653035819,-500.0,0.00013811,2]
[331695205,1720653035829,-500.0,0.00013811,2]
[331695206,1720653035838,-500.0,0.00013811,2]
[331695207,1720653035847,-500.0,0.00013811,2]
[331695208,1720653035856,-500.0,0.00013811,2]
[331695209,1720653035865,-586.79,0.00013811,2]
[331695210,1720653035875,-500.0,0.00013811,2]
[331695211,1720653035884,-500.0,0.00013811,2]
[331695212,1720653035893,-1092.82,0.00013811,2]
[331695213,1720653035901,-500.0,0.00013811,2]
[331695214,1720653035910,-500.0,0.00013811,2]
[331695215,1720653035919,-544.27,0.00013811,2]
[331695216,1720653035928,-349.32893465,0.00013811,2]
[331695217,1720653035937,-500.0,0.00013811,2]
[331695218,1720653035946,-500.0,0.00013811,2]
[331695219,1720653035955,-500.0,0.00013811,2]
[331695220,1720653035964,-212.99189816,0.00013811,2]
[331695221,1720653035974,-500.0,0.00013811,2]
[331695222,1720653035984,-500.0,0.00013812,2]
[331695223,1720653035993,-237.71,0.00013812,2]
[331695224,1720653036003,-300.09,0.00013812,2]
[331695225,1720653036014,-500.0,0.00013812,2]
[331695226,1720653036022,-500.0,0.00013812,2]
[331695227,1720653036033,-500.0,0.00013812,2]
[331695228,1720653036044,-408.46,0.00013812,2]
[331695229,1720653036054,-500.0,0.00013812,2]
[331695230,1720653036064,-500.0,0.00013812,2]
[331695231,1720653036074,-500.0,0.00013812,2]
[331695232,1720653036088,-385.10220627,0.00013832,2]
[331695233,1720653036100,-631.26,0.00013854,2]
[331695234,1720653036111,-446.35,0.00013854,2]
[331695235,1720653036121,-221.99,0.00013854,2]
[331695236,1720653036131,-500.0,0.00013854,2]
[331695237,1720653036141,-500.0,0.00013854,2]
[331695238,1720653036151,-500.0,0.00013854,2]
[331695239,1720653036162,-2369.38,0.00013854,2]
[331695240,1720653036171,-695.01,0.00013854,2]
[331695241,1720653036180,-500.0,0.00013863,2]
[331695242,1720653036192,-500.0,0.00013863,2]
[331695243,1720653036202,-1358.35,0.00013863,2]
[331695244,1720653036213,-4330.04,0.00013863,2]
[331695245,1720653036223,-383.4327,0.00013863,2]
[331695246,1720653036234,-500.0,0.00013866,2]
[331695247,1720653036247,-354.25,0.00013866,2]
[331695248,1720653036256,-206.35,0.00013866,2]
[331695249,1720653036265,-453.59,0.00013866,2]
[331695250,1720653036275,-500.0,0.00013866,2]